bitfinex/quotes_ETHUSD_20220310
["timestamp","ask_amount","ask_price","bid_price","bid_amount"]
[1646882809022,0.93597,2673.7,2673.1,0.06924666]
[1646882809023,3.74444,2673.6,2673.1,0.06924666]
[1646882809418,2.87222,2673.6,2673.1,0.06924666]
[1646882809622,1.0,2673.6,2673.4,2.95397682]
[1646882809817,1.67093461,2673.9,2673.5,0.08828332]
[1646882809818,0.93586,2673.7,2673.5,0.08828332]
[1646882810220,0.93586,2673.7,2673.6,2.95397682]
[1646882811420,1.93579,2673.9,2673.7,0.08689594]
[1646882811880,0.93579,2673.9,2673.7,0.08689594]
[1646882813169,0.93579,2673.9,2673.7,0.11606394]
[1646882813369,1.0,2674.0,2673.8,3.01231282]
[1646882813567,1.0,2674.0,2673.9,0.09031924]
[1646882813767,1.64367463,2674.1,2673.9,0.09031924]
[1646882815621,3.41689596,2674.2,2674.0,2.95397682]
[1646882815819,3.41689596,2674.2,2674.1,0.08995428]
[1646882816019,3.99122798,2674.2,2674.1,0.08995428]
[1646882816419,1.51004202,2674.2,2674.1,0.08995428]
[1646882816821,1.51004202,2674.2,2674.0,2.95397682]
[1646882817022,1.51004202,2674.2,2673.8,0.11387916]
[1646882817221,2.44585202,2674.2,2673.7,0.028001]
[1646882817421,1.87166,2674.1,2673.7,0.028001]
[1646882817622,1.87166,2674.1,2673.8,2.95397682]
[1646882817822,1.87166,2674.1,2673.9,0.07731614]
[1646882818226,3.41689596,2674.2,2674.0,2.95397682]
[1646882818424,2.48118596,2674.2,2674.1,0.08961544]
[1646882818823,7.32,2674.3,2674.1,0.08961544]
[1646882819026,7.32,2674.3,2674.1,0.11878344]
[1646882819470,7.32,2674.3,2674.2,0.029168]
[1646882819670,7.32,2674.3,2674.2,3.06682621]
[1646882819671,8.3681229,2674.3,2674.2,3.06682621]
[1646882819872,8.3681229,2674.3,2674.2,3.03765821]
[1646882820073,1.36358198,2674.1,2674.0,0.028001]
[1646882820272,1.36358198,2674.1,2673.8,2.98197782]
[1646882820570,1.36358198,2674.1,2673.4,0.06611702]
[1646882820782,1.36358198,2674.1,2673.2,0.05720326]
[1646882820976,1.36358198,2674.1,2673.3,1.55059808]
[1646882821176,1.36358198,2674.1,2673.4,0.43073182]
[1646882821379,1.08963479,2673.7,2673.4,0.43073182]
[1646882822075,0.96963479,2673.7,2673.4,0.43073182]
[1646882822276,0.96963479,2673.7,2673.4,0.05573182]
[1646882822675,0.96963479,2673.7,2673.0,4.372]
[1646882822877,0.96963479,2673.7,2673.1,0.05928041]
[1646882823117,0.96963479,2673.7,2673.2,0.05711742]
[1646882824117,0.96963479,2673.7,2673.5,0.01075152]
[1646882824518,0.05980176,2673.6,2673.5,0.01075152]
[1646882824719,0.96963479,2673.7,2673.5,0.01075152]
[1646882825522,1.03086764,2673.7,2673.5,0.01075152]
[1646882826224,0.96963479,2673.7,2673.5,0.01075152]
[1646882829073,0.96963479,2673.7,2673.1,0.05526595]
[1646882829275,0.96963479,2673.7,2673.2,1.550747]
[1646882829574,1.03037539,2673.7,2673.2,1.550747]
[1646882829774,1.03037539,2673.7,2673.3,1.550747]
[1646882829975,1.03037539,2673.7,2673.0,2.14887738]
[1646882830176,1.03037539,2673.7,2673.1,1.55072586]
[1646882832222,0.96963479,2673.7,2673.1,1.61100056]
[1646882832420,0.96963479,2673.7,2673.2,1.55072586]
[1646882832622,3.84476794,2674.1,2673.4,0.06695198]
[1646882832823,1.36358198,2674.1,2673.6,0.375]
[1646882833021,1.36358198,2674.1,2673.8,0.375]
[1646882833222,1.36358198,2674.1,2674.0,0.06027711]
[1646882833422,1.36358198,2674.1,2673.8,0.06097448]
[1646882833626,2.56831379,2674.1,2673.8,0.06097448]
[1646882833825,2.56831379,2674.1,2673.5,0.05523834]
[1646882834021,2.56831379,2674.1,2673.6,1.550532]
[1646882834221,2.64381803,2674.1,2673.7,1.550532]
[1646882834469,2.64381803,2674.1,2673.4,3.5]
[1646882834672,2.64381803,2674.1,2673.5,1.55062678]
[1646882834869,0.93579,2673.9,2673.3,1.203]
[1646882835072,0.93579,2673.9,2673.4,1.55066558]
[1646882836073,0.97346437,2673.5,2673.4,1.55066558]
[1646882836577,0.97346437,2673.5,2673.2,0.01071899]
[1646882836773,1.03418561,2673.5,2673.2,0.01071899]
[1646882837475,0.06072124,2673.5,2673.3,1.55077843]
[1646882837673,0.06483217,2674.0,2673.3,1.55077843]
[1646882838325,1.00062217,2674.0,2673.3,1.55077843]
[1646882838623,1.05009211,2673.5,2673.2,0.01071899]
[1646882838923,0.06143093,2673.9,2673.3,1.55072859]
[1646882839126,0.06143093,2673.9,2673.3,1.56145677]
[1646882839322,0.06143093,2673.9,2673.4,1.55072859]
[1646882839521,0.06143093,2673.9,2673.3,0.01072818]
[1646882839921,0.9483941,2673.8,2673.3,0.01072818]
[1646882840122,0.9483941,2673.8,2673.4,1.5506792]
[1646882840726,0.05989023,2673.7,2673.3,0.01072818]
[1646882842569,0.05989023,2673.7,2673.4,1.55069489]
[1646882844172,0.05989023,2673.7,2673.1,1.1711]
[1646882844672,1.13255464,2673.3,2673.1,1.1711]
[1646882844872,1.13255464,2673.3,2672.9,6.73132029]
[1646882845471,0.06538807,2673.2,2672.7,0.00281488]
[1646882847926,0.02938807,2673.2,2672.7,0.00281488]
[1646882849126,0.02938807,2673.2,2672.8,0.01433082]
[1646882850172,1.13255464,2673.3,2672.8,0.01433082]
[1646882850973,0.09552333,2673.5,2672.8,0.01433082]
[1646882851175,0.028001,2673.5,2672.8,0.01433082]
[1646882851375,0.028001,2673.5,2672.8,4.70353082]
[1646882852376,0.028001,2673.5,2673.1,1.20730645]
[1646882852576,0.028001,2673.9,2673.2,3.5]
[1646882853620,0.88428714,2673.9,2673.2,3.5]
[1646882853820,0.05639363,2673.8,2673.2,3.5]
[1646882854621,0.08507763,2673.8,2673.1,1.20730645]
[1646882855123,0.08507763,2673.8,2673.0,3.5]
[1646882855521,0.964504,2673.8,2673.0,3.5]
[1646882855724,0.06132184,2673.7,2673.0,3.5]
[1646882856325,1.22435299,2673.3,2672.9,10.457401]
[1646882856525,1.22435299,2673.3,2672.9,3.514001]
[1646882857204,0.028001,2673.5,2672.9,3.514001]
[1646882858402,0.9664972,2673.6,2672.9,3.814001]
[1646882859403,0.09622929,2673.9,2673.0,0.0718091]
[1646882860402,0.05998207,2673.7,2673.3,0.9205031]
[1646882860622,0.05998207,2673.7,2673.0,0.0718091]
[1646882860825,0.08840807,2673.7,2673.0,0.0718091]
[1646882862428,0.05480445,2674.0,2673.4,1.03075761]
[1646882863038,0.05480445,2674.0,2673.5,3.5]
[1646882863227,0.09431524,2674.2,2673.5,3.5]
[1646882863429,0.96217518,2674.2,2673.5,3.5]
[1646882863628,0.05304971,2674.1,2673.5,3.5]
[1646882864128,0.028001,2674.2,2673.6,1.55035495]
[1646882864570,0.06802677,2674.5,2673.7,3.5]
[1646882864770,0.06802677,2674.5,2674.3,0.92355851]
[1646882864771,0.028001,2674.4,2674.3,0.92355851]
[1646882864970,0.06802677,2674.5,2673.9,4.726]
[1646882865178,0.09719477,2674.5,2673.9,3.5]
[1646882865376,0.09719477,2674.5,2673.6,4.726]
[1646882865575,0.09719477,2674.5,2673.7,1.55027303]
[1646882865776,0.09719477,2674.5,2673.8,3.5]
[1646882865777,0.029168,2674.5,2673.8,3.5]
[1646882865976,0.029168,2674.5,2674.0,1.10067965]
[1646882865977,0.92441583,2674.4,2674.0,1.10067965]
[1646882866176,0.029168,2674.5,2674.0,4.60067965]
[1646882866177,0.05587243,2674.3,2674.0,4.60067965]
[1646882866377,0.029168,2674.5,2674.0,1.10067965]
[1646882866775,0.029168,2674.5,2673.7,8.12707932]
[1646882866978,0.06547027,2674.7,2673.8,1.55033787]
[1646882866979,0.029168,2674.3,2673.8,1.55033787]
[1646882867182,1.1501,2674.8,2673.7,4.62707932]
[1646882867378,0.029168,2674.2,2673.7,4.62707932]
[1646882867579,0.029168,2674.1,2673.7,4.62707932]
[1646882867782,1.10623542,2674.1,2673.7,4.62707932]
[1646882867979,0.06070501,2674.0,2673.6,2.35270075]
[1646882868226,0.06070501,2674.0,2673.6,1.12670075]
[1646882869430,0.06070501,2674.0,2673.6,1.12535693]
[1646882869830,0.06070501,2674.0,2673.7,1.55039943]
[1646882870031,0.06070501,2674.0,2673.7,5.05039943]
[1646882870230,0.029168,2674.1,2673.6,1.12535693]
[1646882870434,0.029168,2674.1,2673.7,1.55037235]
[1646882871884,0.029168,2674.1,2673.6,4.62535693]
[1646882871885,0.029168,2674.1,2673.6,1.12535693]
[1646882872074,0.029168,2674.1,2673.6,5.74249425]
[1646882872275,0.029168,2674.1,2673.7,1.55038312]
[1646882873079,0.029168,2674.1,2673.6,5.74249425]
[1646882874179,0.029168,2674.1,2673.6,9.24249425]
[1646882874378,0.029168,2674.1,2673.6,5.74249425]
[1646882874579,0.029168,2674.1,2673.6,9.24249425]
[1646882874777,0.029168,2674.1,2673.7,1.55037018]
[1646882875178,0.029168,2674.1,2673.6,9.24249425]
[1646882875478,0.029168,2674.1,2673.7,1.5503741]
[1646882875729,0.029168,2674.1,2673.6,5.74249425]
[1646882876926,0.029168,2674.1,2673.6,4.61713732]
[1646882877127,0.029168,2673.7,2673.6,4.61713732]
[1646882877330,0.029168,2673.8,2673.6,4.61713732]
[1646882877728,0.09740305,2673.8,2673.6,4.61713732]
[1646882878130,0.05917042,2673.7,2673.6,4.61713732]
[1646882879128,0.029168,2673.8,2673.6,4.61713732]
[1646882879571,0.028001,2673.9,2673.6,4.61713732]
[1646882879770,0.028349,2673.9,2673.6,4.61713732]
[1646882880373,0.93583,2673.8,2673.6,4.61713732]
[1646882880572,0.05811484,2673.7,2673.6,4.61713732]
[1646882880982,0.06185115,2674.2,2673.6,9.66759733]
[1646882881175,0.06185115,2674.2,2673.7,1.55040019]
[1646882881376,0.09101915,2674.2,2673.7,1.55040019]
[1646882881575,0.09101915,2674.2,2673.8,3.5]
[1646882882175,0.09101915,2674.2,2673.9,1.00641753]
[1646882883324,0.06185115,2674.2,2673.9,1.00641753]
[1646882885330,0.028001,2674.3,2673.9,1.00641753]
[1646882890086,0.028001,2674.3,2673.9,1.00521453]
[1646882892030,0.0673799,2674.5,2673.9,1.00521453]
[1646882892031,0.029168,2674.2,2673.9,1.00521453]
[1646882893630,0.0673799,2674.5,2673.9,1.00521453]
[1646882894031,0.0965479,2674.5,2674.0,3.5]
[1646882894234,0.0965479,2674.5,2673.9,1.00521453]
[1646882894774,0.029168,2674.3,2673.9,1.00521453]
[1646882894975,0.09560446,2674.3,2673.9,1.00521453]
[1646882896978,0.06643646,2674.3,2673.9,1.00521453]
[1646882897188,0.029168,2674.0,2673.7,1.2176]
[1646882897380,0.0824401,2674.0,2673.7,1.2176]
[1646882897779,0.0824401,2674.0,2673.4,4.67902862]
[1646882897979,0.0532721,2674.0,2673.5,1.55048343]
[1646882898227,0.029168,2673.9,2673.5,1.55048343]
[1646882898628,0.029168,2673.9,2673.6,1.55050257]
[1646882898828,0.029168,2673.9,2673.7,2.63879116]
[1646882899036,0.028911,2673.9,2673.7,1.08828859]
[1646882900137,0.029168,2673.8,2673.2,9.4633]
[1646882900337,0.029168,2673.7,2673.3,1.55056229]
[1646882900538,0.0532721,2674.0,2673.4,3.5]
[1646882900839,0.029168,2673.8,2673.5,1.55056229]
[1646882901038,0.029168,2673.8,2673.2,5.3165]
[1646882901039,0.029168,2673.8,2673.6,1.55056229]
[1646882901244,0.029168,2673.7,2673.6,1.07432762]
[1646882901439,0.029168,2673.7,2673.6,1.55057016]
[1646882901647,0.029168,2673.7,2673.3,0.78672116]
[1646882901887,0.05494284,2673.8,2673.3,0.78672116]
[1646882901888,0.029168,2673.4,2673.3,0.78672116]
[1646882902276,0.028001,2673.5,2673.3,0.78672116]
[1646882902474,0.028483,2673.5,2673.3,0.78672116]
[1646882902675,0.06858444,2674.0,2673.3,0.78672116]
[1646882902876,0.028001,2674.1,2673.3,0.78672116]
[1646882903075,0.029168,2674.0,2673.3,0.78672116]
[1646882903274,0.029168,2673.9,2673.4,0.88547165]
[1646882903675,0.028001,2674.0,2673.4,0.88547165]
[1646882903880,0.06136439,2674.3,2673.5,3.5]
[1646882904075,0.029168,2674.2,2673.5,3.5]
[1646882904880,0.029168,2674.2,2673.9,0.90028727]
[1646882905075,0.06136439,2674.3,2673.9,0.90028727]
[1646882905076,0.08936539,2674.3,2673.9,0.90028727]
[1646882905481,0.06136439,2674.3,2673.6,1.1362]
[1646882905732,0.029168,2674.0,2673.6,1.1362]
[1646882905932,0.029168,2673.7,2673.6,1.1362]
[1646882906131,0.028778,2673.7,2673.6,1.1362]
[1646882906331,0.028778,2673.7,2673.1,3.5]
[1646882906532,0.0559805,2673.9,2673.5,0.94138408]
[1646882906739,0.029168,2673.6,2673.5,0.94138408]
[1646882907132,2.2394,2674.3,2673.5,4.44138408]
[1646882907133,1.2394,2674.3,2673.5,4.44138408]
[1646882907337,0.029168,2674.0,2673.5,0.94138408]
[1646882907533,0.029168,2673.9,2673.5,0.94138408]
[1646882908832,0.029168,2673.9,2673.6,3.5]
[1646882909033,0.028001,2674.0,2673.6,3.5]
[1646882909479,0.05236603,2674.2,2673.6,3.5]
[1646882909677,0.028001,2674.1,2673.6,3.5]
[1646882910980,0.029168,2674.0,2673.6,3.5]
[1646882911382,0.029168,2674.0,2673.5,0.94138408]
[1646882911580,0.029168,2674.0,2673.6,3.5]
[1646882911881,0.05236603,2674.2,2674.1,1.00703879]
[1646882912084,3.11458591,2674.6,2674.1,1.00703879]
[1646882912281,0.029168,2674.3,2674.1,1.00703879]
[1646882912483,0.05930309,2674.5,2674.1,1.00703879]
[1646882912682,0.029168,2674.3,2674.1,1.00703879]
[1646882919279,0.029168,2674.3,2673.4,3.5]
[1646882919479,0.029168,2674.0,2673.3,1.1561]
[1646882919678,0.06742562,2674.5,2673.4,3.5]
[1646882919679,0.029168,2673.7,2673.4,3.5]
[1646882919882,0.028575,2673.7,2673.4,3.5]
[1646882920281,0.028001,2673.8,2673.4,3.5]
[1646882920478,0.028001,2673.8,2673.7,0.89780574]
[1646882920479,0.02884,2673.8,2673.7,0.89780574]
[1646882920729,0.028001,2673.9,2673.7,0.89780574]
[1646882920930,0.028001,2674.0,2673.7,0.89780574]
[1646882921732,0.06016259,2674.1,2673.7,0.89780574]
[1646882921932,0.029168,2673.9,2673.7,0.89780574]
[1646882922331,0.029168,2673.8,2673.7,0.89780574]
[1646882922535,0.029168,2673.8,2673.7,2.44837929]
[1646882922935,0.06016259,2674.1,2673.7,1.55057355]
[1646882923132,0.029168,2673.8,2673.7,1.55057355]
[1646882923331,0.029168,2673.8,2673.3,5.77323732]
[1646882923532,0.05401373,2673.9,2673.4,1.5506103]
[1646882923533,0.029168,2673.7,2673.4,1.5506103]
[1646882924383,0.029168,2673.7,2673.6,0.8999459]
[1646882924574,0.028188,2673.7,2673.6,0.8999459]
[1646882924776,0.028001,2673.9,2673.6,2.4505562]
[1646882924974,0.028001,2673.9,2673.7,1.5506103]
[1646882924975,0.029168,2673.9,2673.7,1.5506103]
[1646882926579,0.029168,2673.9,2673.7,1.549427]
[1646882927280,0.029168,2673.9,2673.6,0.8999459]
[1646882928123,0.06291127,2674.0,2673.6,0.8999459]
[1646882928327,0.029168,2673.8,2673.6,0.8999459]
[1646882928524,0.028492,2673.8,2673.6,0.8999459]
[1646882928724,0.028001,2673.9,2673.6,0.8999459]
[1646882930429,0.029168,2673.8,2673.6,0.8999459]
[1646882930629,0.06291127,2674.0,2673.6,0.8999459]
[1646882930833,0.029168,2673.8,2673.6,0.8999459]
[1646882931432,0.029168,2673.7,2673.3,5.77323732]
[1646882931633,0.029168,2673.5,2673.3,5.77323732]
[1646882931883,0.028961,2673.5,2673.3,5.77323732]
[1646882932274,0.028001,2673.8,2673.3,5.77323732]
[1646882932475,0.028927,2673.8,2673.3,5.77323732]
[1646882932778,0.06291127,2674.0,2673.3,5.77323732]
[1646882932977,0.029168,2673.7,2673.3,5.77323732]
[1646882933174,0.029168,2673.5,2673.3,5.77323732]
[1646882933574,0.029168,2673.5,2673.4,0.87331203]
[1646882934574,1.82102442,2674.0,2673.4,0.87331203]
[1646882934775,0.029168,2673.7,2673.4,0.87331203]
[1646882934977,0.029168,2673.5,2673.3,5.77323732]
[1646882935386,0.029168,2673.5,2673.3,4.61713732]
[1646882935626,0.05821373,2673.6,2673.3,4.61713732]
[1646882935828,0.029168,2673.5,2673.3,4.61713732]
[1646882937434,0.029168,2673.4,2673.3,4.61713732]
[1646882937633,0.925068,2673.4,2673.3,4.61713732]
[1646882938432,0.925068,2673.4,2672.9,9.1564823]
[1646882938635,0.029168,2673.2,2672.9,1.5790823]
[1646882938934,0.029168,2673.2,2672.7,0.91503623]
[1646882939133,0.029168,2673.0,2672.7,0.91503623]
[1646882940686,0.029019,2673.0,2672.7,0.91503623]
[1646882940877,0.028001,2673.1,2672.7,0.91503623]
[1646882941281,0.93611,2673.0,2672.7,0.91503623]
[1646882941480,0.965278,2673.0,2672.7,0.91503623]
[1646882942180,0.029168,2673.0,2672.7,0.91503623]
[1646882942780,0.029168,2672.9,2672.7,0.91503623]
[1646882942982,0.87972,2673.0,2672.1,5.3855]
[1646882943241,0.87972,2673.0,2671.6,2.32685449]
[1646882943242,0.029168,2672.8,2671.6,2.32685449]
[1646882943439,0.029168,2672.8,2671.1,0.008263]
[1646882943440,0.445,2672.7,2671.1,1.29865565]
[1646882943634,0.029168,2672.2,2671.1,1.235363]
[1646882943834,3.529168,2672.2,2670.8,0.69460079]
[1646882944033,4.4657618,2672.2,2670.7,1.2271]
[1646882944235,0.88323199,2671.8,2671.2,0.90313735]
[1646882944434,4.738568,2672.2,2671.2,0.90313735]
[1646882944435,1.87319,2672.0,2671.2,0.90313735]
[1646882944633,4.529168,2672.2,2671.2,0.90313735]
[1646882944634,0.029168,2672.2,2671.2,0.90313735]
[1646882944839,0.029168,2672.2,2671.2,1.27813735]
[1646882945034,0.029168,2672.2,2671.3,0.06105382]
[1646882945237,0.93638,2672.1,2671.1,0.008263]
[1646882945440,3.5,2672.0,2671.0,1.2271]
[1646882945636,1.87221336,2671.8,2671.0,1.2271]
[1646882945843,1.87221336,2671.8,2670.9,2.3268]
[1646882945844,2.79671336,2671.8,2670.9,2.3268]
[1646882946041,0.9245,2671.8,2670.9,2.3268]
[1646882946243,0.9245,2671.8,2671.5,1.1956361]
[1646882946438,1.12654533,2672.2,2671.5,1.1956361]
[1646882947275,1.12654533,2672.2,2671.1,1.5566]
[1646882947276,0.93643,2672.0,2671.1,1.5566]
[1646882947477,0.93643,2672.0,2671.2,1.55163323]
[1646882947877,0.93643,2672.0,2671.1,1.5566]
[1646882948076,0.05591392,2671.9,2671.1,1.5566]
[1646882948878,0.05591392,2671.9,2671.4,1.12880626]
[1646882949278,0.05591392,2671.9,2671.7,0.00446829]
[1646882949883,3.5,2671.9,2671.7,0.00446829]
[1646882950083,0.0638803,2671.8,2671.7,0.00446829]
[1646882952535,2.23738244,2672.3,2671.7,0.00446829]
[1646882952734,0.05317517,2672.2,2671.7,0.00446829]
[1646882953334,1.16977852,2672.1,2671.7,0.00446829]
[1646882953537,0.99211379,2672.0,2671.7,0.00446829]
[1646882953934,0.06506083,2671.9,2671.7,0.00446829]
[1646882959634,1.2357,2672.3,2671.7,0.00446829]
[1646882959836,0.19541359,2672.4,2671.7,0.00446829]
[1646882960033,0.05974736,2672.6,2671.7,0.00446829]
[1646882960836,0.05974736,2672.6,2671.7,0.89163885]
[1646882960837,0.96826006,2672.3,2671.7,0.89163885]
[1646882961039,1.0011099,2672.2,2671.7,0.00446829]
[1646882961640,0.05585208,2672.1,2671.7,0.00446829]
[1646882963079,0.0539276,2672.2,2671.7,0.00446829]
[1646882963880,0.0539276,2672.2,2671.9,0.00443986]
[1646882965183,0.029168,2672.0,2671.9,0.00443986]
[1646882965382,1.196768,2672.0,2671.9,0.00443986]
[1646882965629,1.496768,2672.0,2671.9,0.00443986]
[1646882965830,1.941768,2672.0,2671.9,0.00443986]
[1646882967132,2.50046108,2672.0,2671.9,0.00443986]
[1646882967332,3.50046108,2672.0,2671.9,0.00443986]
[1646882968535,3.20046108,2672.0,2671.9,0.00443986]
[1646882968734,2.17129308,2672.0,2671.9,0.00443986]
[1646882969137,2.17129308,2672.0,2671.9,0.00293343]
[1646882969775,2.17129308,2672.0,2670.8,3.5]
[1646882969976,2.47129308,2672.0,2670.8,3.5]
[1646882971380,2.47129308,2672.0,2670.9,1.55169822]
[1646882971381,0.93659,2671.9,2670.9,1.55169822]
[1646882971578,0.93659,2671.9,2671.0,1.20222716]
[1646882971579,1.09376728,2671.6,2671.0,1.20222716]
[1646882972781,0.964591,2671.9,2671.0,1.20222716]
[1646882974029,1.06434047,2671.7,2671.0,1.20222716]
[1646882975429,0.964591,2671.9,2671.1,3.5]
[1646882975630,0.964591,2671.9,2671.1,3.5637013]
[1646882975631,0.028001,2671.9,2671.1,3.5637013]
[1646882975835,1.20438785,2672.1,2671.2,1.55152514]
[1646882976035,1.20438785,2672.1,2671.3,3.5]
[1646882976236,0.028001,2672.3,2671.3,3.5]
[1646882976438,0.08433183,2672.3,2671.4,1.5514893]
[1646882976635,0.08433183,2672.3,2671.6,1.0687738]
[1646882976887,0.028001,2672.3,2671.7,3.5]
[1646882977482,0.028001,2672.3,2671.6,1.0687738]
[1646882977881,0.028001,2672.3,2671.7,3.5]
[1646882978081,0.0963899,2672.3,2671.7,3.5]
[1646882978283,0.0963899,2672.3,2671.6,1.0687738]
[1646882978682,0.0963899,2672.3,2671.6,1.12734999]
[1646882980381,0.0963899,2672.3,2671.7,3.5]
[1646882981032,0.0963899,2672.3,2671.6,1.12734999]
[1646882981529,0.0963899,2672.3,2671.7,3.5]
[1646882982331,0.0963899,2672.3,2671.6,1.12734999]
[1646882982530,0.0963899,2672.3,2671.7,1.55133954]
[1646882986889,0.0963899,2672.3,2671.4,1.55133954]
[1646882987088,0.93655,2672.1,2671.4,1.55133954]
[1646882987292,0.06733976,2672.0,2671.4,1.55133954]
[1646882988233,0.028001,2672.3,2671.4,1.55133954]
[1646882988234,0.09365269,2672.3,2671.5,0.8856042]
[1646882988432,0.09365269,2672.3,2671.6,1.55133954]
[1646882989635,0.93648,2672.2,2671.6,1.55133954]
[1646882990034,0.06090181,2672.1,2671.6,1.55133954]
[1646882990236,0.08943481,2672.1,2671.6,1.55133954]
[1646882991241,0.08943481,2672.1,2671.4,1.55133954]
[1646882991440,0.08943481,2672.1,2671.3,7.91307684]
[1646882991441,0.93655,2672.0,2671.3,7.91307684]
[1646882991640,0.05790488,2671.9,2671.4,1.55154161]
[1646882991888,0.08600388,2671.9,2671.4,1.55154161]
[1646882992082,0.028099,2671.9,2671.4,1.55154161]
[1646882993483,0.029168,2671.6,2671.4,1.55154161]
[1646882993686,0.029168,2671.6,2671.0,1.30796039]
[1646882994278,0.028001,2671.8,2671.0,1.30796039]
[1646882994479,0.028001,2671.8,2671.5,0.90891636]
[1646882997134,0.028001,2671.8,2671.1,3.5]
[1646882997334,0.028001,2671.8,2671.0,1.30796039]
[1646882998536,0.08034813,2671.8,2671.2,1.12266681]
[1646882998936,0.029168,2671.6,2671.2,1.12266681]
[1646882999396,0.029168,2671.6,2671.0,1.2371]
[1646882999585,0.93663,2671.7,2671.0,1.2371]
[1646882999785,0.029168,2671.4,2670.9,2.4008]
[1646882999985,0.05294822,2671.6,2670.9,2.4008]
[1646883000185,0.029168,2671.3,2670.9,2.4008]
[1646883000586,0.029168,2671.3,2671.1,1.19150956]
[1646883001190,0.028001,2671.6,2671.1,1.19150956]
[1646883001391,0.09311102,2671.8,2671.1,1.19150956]
[1646883001790,0.06394302,2671.8,2671.1,1.19150956]
[1646883002189,0.06394302,2671.8,2671.6,0.92820168]
[1646883002591,0.57116387,2672.0,2671.6,0.92820168]
[1646883002592,0.028001,2671.9,2671.6,0.92820168]
[1646883003931,0.029168,2671.8,2671.6,0.92820168]
[1646883004331,0.06734627,2671.9,2671.6,0.92820168]
[1646883004532,0.029168,2671.7,2671.3,0.00427964]
[1646883004731,0.06734627,2671.9,2671.3,0.00427964]
[1646883004931,0.029168,2671.6,2671.3,0.00427964]
[1646883006989,0.06734627,2671.9,2671.3,0.00427964]
[1646883007392,0.029168,2671.6,2671.3,0.00427964]
[1646883007589,0.029168,2671.4,2671.3,0.00427964]
[1646883008690,0.028001,2671.9,2671.3,0.00427964]
[1646883009090,0.029168,2671.7,2671.6,7.47916552]
[1646883009489,0.029168,2671.7,2671.6,8.68925151]
[1646883009688,0.029168,2671.7,2671.6,7.47916552]
[1646883010491,0.028001,2671.9,2671.6,7.47916552]
[1646883010740,0.08029163,2671.9,2671.6,7.47916552]
[1646883010935,0.08029163,2671.9,2671.7,1.09255336]
[1646883010936,0.029168,2671.8,2671.7,1.09255336]
[1646883011137,0.029168,2671.8,2671.6,7.47916552]
[1646883011338,0.029168,2671.7,2671.6,7.47916552]
[1646883012235,0.05229063,2671.9,2671.6,8.68041596]
[1646883012437,0.08145863,2671.9,2671.6,8.68041596]
[1646883012836,0.029168,2671.8,2671.6,8.68041596]
[1646883013641,0.05229063,2671.9,2671.6,8.68041596]
[1646883013840,0.08145863,2671.9,2671.7,1.55153781]
[1646883014483,0.05229063,2671.9,2671.8,7.47762689]
[1646883014685,0.08145863,2671.9,2671.8,7.47762689]
[1646883015484,3.58145863,2671.9,2671.8,7.47762689]
[1646883015687,0.08145863,2671.9,2671.8,7.47762689]
[1646883019232,0.08145863,2671.9,2671.8,7.48212809]
[1646883019832,0.05787685,2671.9,2671.8,7.48212809]
[1646883020034,0.08237785,2671.9,2671.8,7.48212809]
[1646883020432,3.58237785,2671.9,2671.8,7.48212809]
[1646883020835,4.58237785,2671.9,2671.8,7.48212809]
[1646883021239,4.58237785,2671.9,2670.6,2.32753351]
[1646883021240,4.73672,2671.7,2670.6,2.32753351]
[1646883021443,5.97343,2671.8,2670.5,6.49261175]
[1646883021444,0.024501,2670.9,2670.5,6.49261175]
[1646883021637,0.04957122,2670.9,2670.5,6.49261175]
[1646883021895,0.024501,2670.8,2670.3,2.17745595]
[1646883022285,0.024501,2670.8,2670.3,1.1298]
[1646883022488,0.024501,2670.8,2669.9,5.9132]
[1646883022489,0.024501,2670.4,2669.9,5.9132]
[1646883022685,0.024501,2670.4,2669.9,1.189]
[1646883022888,0.0523926,2670.6,2669.9,1.189]
[1646883022889,0.024501,2670.3,2669.9,1.189]
[1646883023088,7.54434,2671.2,2669.9,1.189]
[1646883023089,0.024501,2670.5,2669.9,1.189]
[1646883023287,0.024501,2671.0,2670.6,1.21680774]
[1646883023487,0.024501,2671.0,2670.0,0.07934654]
[1646883023488,0.93685,2671.0,2670.0,0.07934654]
[1646883024288,0.024501,2670.8,2670.0,0.07934654]
[1646883024489,0.024501,2670.8,2669.8,2.4405]
[1646883024689,0.024501,2670.5,2669.8,2.4405]
[1646883024890,0.07778355,2670.5,2669.8,2.4405]
[1646883025743,0.024501,2670.5,2669.8,2.4405]
[1646883026142,0.07091872,2670.5,2669.8,2.4405]
[1646883026351,1.2336,2670.9,2669.8,2.4405]
[1646883026352,0.24515929,2671.0,2670.1,0.96733328]
[1646883026543,0.04981363,2671.0,2670.1,0.96733328]
[1646883027345,1.05256329,2670.9,2670.1,0.96733328]
[1646883027545,1.98938329,2670.9,2670.1,0.96733328]
[1646883027744,1.98813422,2670.9,2670.1,0.96733328]
[1646883028144,0.93682,2670.9,2670.2,3.5]
[1646883028345,0.04981363,2671.0,2670.2,3.5]
[1646883028346,0.04981363,2671.0,2670.3,0.07895725]
[1646883028544,0.04981363,2671.0,2670.3,1.12425725]
[1646883028743,0.04981363,2671.0,2670.4,3.5]
[1646883028948,0.024501,2671.2,2670.4,4.7385]
[1646883029144,0.07728164,2671.2,2670.4,4.7385]
[1646883029398,0.024501,2671.2,2670.4,4.7385]
[1646883029584,0.07016899,2671.2,2670.4,1.2385]
[1646883030386,0.024501,2671.2,2670.4,1.2385]
[1646883030689,1.02736152,2670.9,2670.4,1.2385]
[1646883030889,1.05186252,2670.9,2670.3,1.04578694]
[1646883031495,1.05186252,2670.9,2670.3,0.07895725]
[1646883031690,0.93689,2670.8,2670.0,1.30902537]
[1646883032789,0.93689,2670.8,2670.2,1.02415793]
[1646883033834,0.62216743,2671.2,2670.3,0.07722717]
[1646883034040,0.024501,2670.9,2670.3,0.07722717]
[1646883034636,0.024501,2670.9,2670.2,1.02415793]
[1646883034637,1.00083208,2670.9,2670.2,1.02415793]
[1646883034838,0.04537212,2670.8,2670.2,1.02415793]
[1646883035538,0.98222212,2670.8,2670.2,1.02415793]
[1646883036988,0.98222212,2670.8,2670.0,1.2385]
[1646883037189,0.04758205,2670.7,2670.0,1.2385]
[1646883037390,0.04758205,2670.7,2670.1,3.5]
[1646883037588,0.9336,2671.0,2670.2,0.08406824]
[1646883038388,0.9336,2671.0,2670.4,1.06569859]